bitfinex-derivatives/quotes_SOLF0:USTF0_20250421
["timestamp","ask_amount","ask_price","bid_price","bid_amount"]
[1745215244349,35.73067975,140.99,140.88,361.0]
[1745215244558,5.57067975,140.96,140.92,5.57067975]
[1745215244751,7.094,140.98,140.94,7.0957]
[1745215244953,5.57067975,140.95,140.94,7.0957]
[1745215245260,5.57067975,140.96,140.94,7.0957]
[1745215245556,5.61913928,140.96,140.94,7.0957]
[1745215247248,0.04845953,140.96,140.94,7.0957]
[1745215247453,0.04845953,140.96,140.93,7.14112104]
[1745215247848,0.04845953,140.96,140.93,0.04502104]
[1745215248658,0.04845953,140.96,140.94,7.0957]
[1745215250658,0.04845953,140.96,140.95,7.0952]
[1745215250859,0.04845953,140.96,140.95,12.66587975]
[1745215252757,0.04845953,140.96,140.95,7.0952]
[1745215252962,0.04845953,140.96,140.94,12.66617975]
[1745215258966,0.04845953,140.96,140.95,7.0952]
[1745215259566,0.04845953,140.96,140.95,12.66587975]
[1745215264970,30.16,140.99,140.97,5.57067975]
[1745215265174,5.57067975,141.03,140.98,5.57067975]
[1745215265375,30.12,141.03,141.0,12.66307975]
[1745215265676,30.12,141.03,141.01,5.57067975]
[1745215265876,30.12,141.03,141.02,5.57067975]
[1745215266081,30.16710731,141.03,141.02,5.57067975]
[1745215266277,0.04710731,141.03,141.02,5.57067975]
[1745215266578,0.04710731,141.03,141.01,12.71175877]
[1745215270379,0.04710731,141.03,141.02,7.0917]
[1745215272179,0.04710731,141.03,141.01,12.71175877]
[1745215272780,0.04710731,141.03,141.01,7.14107902]
[1745215272980,0.04710731,141.03,141.01,12.71175877]
[1745215273876,7.13850731,141.03,141.01,0.04907902]
[1745215274080,12.70918706,141.03,141.01,0.04907902]
[1745215274481,5.61778706,141.03,141.01,0.04907902]
[1745215274684,0.04710731,141.03,141.01,0.04907902]
[1745215275074,0.04710731,141.03,141.01,5.61975877]
[1745215275281,0.04710731,141.03,141.02,5.57067975]
[1745215275780,0.04710731,141.03,141.02,12.66237975]
[1745215278876,0.04710731,141.03,141.02,5.57067975]
[1745215279484,0.04710731,141.03,141.01,5.61975877]
[1745215279679,5.61778706,141.03,141.01,0.04907902]
[1745215279883,5.57067975,141.02,141.01,0.04907902]
[1745215280075,5.57067975,141.02,140.96,30.12]
[1745215280076,7.0925,141.01,140.97,12.66467975]
[1745215280279,7.0925,141.01,140.97,7.094]
[1745215280476,7.0925,141.01,140.98,5.57067975]
[1745215281386,7.13932404,141.01,140.98,5.62436329]
[1745215281587,7.13932404,141.01,140.98,12.71806329]
[1745215281985,0.04682404,141.01,140.98,12.71806329]
[1745215282885,0.04682404,141.01,140.99,5.57067975]
[1745215283086,0.04682404,141.01,140.98,12.71806329]
[1745215284687,0.04682404,141.01,140.98,0.05368354]
[1745215284688,7.13912404,141.01,140.98,0.05368354]
[1745215284888,0.04682404,141.01,140.98,0.05368354]
[1745215285287,7.13922404,141.01,140.98,0.05368354]
[1745215285586,0.04682404,141.01,140.99,7.0932]
[1745215285788,0.04682404,141.01,140.98,5.62436329]
[1745215286489,0.04682404,141.01,140.98,12.71776329]
[1745215288190,0.04682404,141.01,140.99,7.0932]
[1745215288484,0.04682404,141.01,140.98,5.62436329]
[1745215288686,0.04682404,141.01,141.0,7.0927]
[1745215288991,0.04682404,141.01,140.98,5.62436329]
[1745215289186,0.04682404,141.01,141.0,7.0927]
[1745215290190,0.04682404,141.01,140.99,12.66367975]
[1745215290888,0.04682404,141.01,141.0,12.66337975]
[1745215295395,0.04682404,141.01,141.0,7.0927]
[1745215295892,0.04682404,141.01,141.0,12.66337975]
[1745215304196,0.04682404,141.01,140.98,5.62436329]
[1745215304594,0.04682404,141.01,140.98,12.71776329]
[1745215304892,0.04682404,141.01,140.99,5.57067975]
[1745215305496,0.04682404,141.01,140.99,12.66387975]
[1745215306805,0.04682404,141.01,140.99,7.0932]
[1745215307007,0.04682404,141.01,140.99,12.66387975]
[1745215309603,0.04682404,141.01,141.0,7.0927]
[1745215309805,0.04682404,141.01,141.0,12.66337975]
[1745215318111,30.06,141.05,141.03,7.0909]
[1745215318310,30.06,141.05,141.02,5.57067975]
[1745215318510,30.06,141.05,141.03,5.57067975]
[1745215318711,30.06,141.05,141.03,12.66147975]
[1745215319106,30.06,141.05,141.03,12.71129001]
[1745215319311,30.11151788,141.05,141.03,12.71129001]
[1745215320912,30.11151788,141.05,141.04,7.0907]
[1745215323614,30.11151788,141.05,141.03,12.71149001]
[1745215325216,30.11151788,141.05,141.04,7.0907]
[1745215326316,35.68219763,141.05,141.03,0.04981026]
[1745215326513,5.57067975,141.04,140.98,5.57067975]
[1745215326814,5.57067975,141.02,140.98,5.57067975]
[1745215327011,5.57067975,141.02,140.99,7.0929]
[1745215327615,5.57067975,141.02,140.99,7.1422213]
[1745215327915,12.71016609,141.02,140.99,7.1422213]
[1745215328417,5.61826609,141.02,140.99,7.1422213]
[1745215328616,5.61826609,141.02,140.99,12.71290105]
[1745215328916,5.61826609,141.02,140.99,7.1422213]
[1745215329415,12.70996609,141.02,140.99,7.1422213]
[1745215332416,5.61826609,141.02,140.99,7.1422213]
[1745215332816,5.61826609,141.02,141.0,7.0926]
[1745215333011,0.04758634,141.02,141.0,7.0926]
[1745215333209,7.13938634,141.02,140.99,5.62000105]
[1745215334019,0.04758634,141.02,140.99,12.71290105]
[1745215334221,0.04758634,141.02,140.99,5.62000105]
[1745215334415,0.04758634,141.02,141.01,5.57067975]
[1745215334615,0.04758634,141.02,141.01,12.66287975]
[1745215334915,33.8583,141.08,141.01,5.57067975]
[1745215335115,30.0,141.08,141.06,5.57067975]
[1745215336113,30.0,141.08,141.06,5.62493048]
[1745215336320,30.04670327,141.08,141.07,7.0892]
[1745215336519,30.04670327,141.08,141.07,12.65987975]
[1745215336814,0.04670327,141.08,141.07,7.0892]
[1745215337510,0.04670327,141.08,141.07,12.65987975]
[1745215341020,0.04670327,141.08,141.06,12.71443048]
[1745215341215,0.04670327,141.08,141.06,7.14375073]
[1745215341421,0.04670327,141.08,141.06,12.71443048]
[1745215341921,0.04670327,141.08,141.06,7.14375073]
[1745215344021,7.13550327,141.08,141.06,0.05425073]
[1745215345321,12.65987975,141.07,141.06,0.05425073]
[1745215345519,5.57067975,141.05,140.97,591.44]
[1745215345822,12.66147975,141.04,141.01,7.0919]
[1745215346519,12.70993739,141.04,141.01,7.14420434]
[1745215346925,5.61913739,141.04,141.01,7.14420434]
[1745215347224,0.04845764,141.04,141.01,7.14420434]
[1745215347826,0.04845764,141.04,141.02,7.0915]
[1745215348024,0.04845764,141.04,141.02,5.57067975]
[1745215348324,0.04845764,141.04,141.03,5.57067975]
[1745215348524,0.04845764,141.04,141.01,5.62298409]
[1745215348824,5.61913739,141.04,141.01,0.05230434]
[1745215349025,35.51067975,141.03,141.01,0.05230434]
[1745215349925,42.60217975,141.03,141.01,0.05230434]
[1745215350225,42.60217975,141.03,141.0,7.0924]
[1745215351422,42.60217975,141.03,141.0,7.12009623]
[1745215351728,12.66247975,141.02,141.0,0.02769623]
[1745215352522,12.66287975,141.01,141.0,0.02769623]
[1745215357430,5.57067975,141.01,141.0,0.02769623]
[1745215358234,14.59147975,141.02,141.0,0.02769623]
[1745215359830,7.49957975,141.02,141.0,0.02769623]
[1745215360030,7.0922,141.01,141.0,0.02769623]
[1745215361039,12.66287975,141.01,141.0,0.02769623]
[1745215363839,5.57067975,141.01,140.94,5.57067975]
[1745215364039,5.57067975,140.97,140.93,5.57067975]
[1745215364236,5.57067975,140.98,140.91,35.7058]
[1745215364540,5.57067975,140.98,140.94,5.57067975]
[1745215365038,5.61894414,140.97,140.93,5.57067975]
[1745215365238,0.04826439,140.97,140.94,5.57067975]
[1745215365935,0.04826439,140.97,140.94,7.0953]
[1745215366143,0.04826439,140.97,140.94,12.66597975]
[1745215366338,0.04826439,140.97,140.94,5.57067975]
[1745215367240,0.04826439,140.97,140.95,7.0951]
[1745215367939,0.04826439,140.97,140.94,5.57067975]
[1745215369241,0.04826439,140.97,140.95,7.0952]
[1745215374848,0.04826439,140.97,140.96,7.0947]
[1745215375055,0.04826439,140.97,140.96,12.66537975]
[1745215380652,31.8089,141.02,140.99,7.0931]
[1745215380848,5.57067975,141.01,140.98,5.57067975]
[1745215381047,29.88,141.02,140.98,5.57067975]
[1745215381048,35.45067975,141.02,140.98,5.57067975]
[1745215381552,35.45067975,141.02,140.99,7.0928]
[1745215381855,35.49651639,141.02,140.99,7.1397791]
[1745215382154,5.57067975,141.01,140.99,7.1397791]
[1745215382954,5.57067975,141.01,141.0,7.0927]
[1745215383354,29.92583664,141.02,141.0,7.0927]
[1745215383559,0.04583664,141.02,141.01,7.0922]
[1745215383854,0.04583664,141.02,141.01,12.66287975]
[1745215384051,0.04583664,141.02,141.01,7.0922]
[1745215388357,0.04583664,141.02,141.01,12.66287975]
[1745215388558,31.8819,141.08,141.01,5.57067975]
[1745215388757,29.88,141.08,141.07,5.57067975]
[1745215389056,35.45067975,141.08,141.04,5.57067975]
[1745215389255,5.57067975,141.07,140.99,29.88]
[1745215389456,5.57067975,141.07,141.02,5.57067975]
[1745215389757,0.05430467,141.04,141.02,5.61641263]
[1745215390054,0.05430467,141.04,141.03,5.57067975]
[1745215390255,0.05430467,141.04,141.03,12.66187975]
[1745215390557,29.88,141.08,141.03,13.23483698]
[1745215390757,29.88,141.08,141.06,5.57067975]
[1745215390953,29.88,141.08,141.06,12.65997975]
[1745215391553,29.88,141.08,141.07,14.75335723]
[1745215391756,29.92808284,141.08,141.07,20.32403698]
[1745215392255,0.04808284,141.08,141.07,20.32403698]
[1745215392454,0.04808284,141.08,141.07,12.65987975]
[1745215393554,593.6088,141.14,141.11,7.0869]
[1745215393857,29.88,141.14,141.12,5.57067975]
[1745215394257,29.88,141.14,141.13,7.0862]
[1745215394558,29.88,141.14,141.13,12.65687975]
[1745215394964,29.88,141.14,141.12,0.05049768]
[1745215395458,29.88,141.14,141.12,12.70757743]
[1745215395657,29.88,141.14,141.13,5.57067975]
[1745215395859,0.05154576,141.15,141.13,5.57067975]
[1745215396056,29.88,141.19,141.14,5.57067975]
[1745215396256,29.88,141.19,141.16,5.57067975]
[1745215396761,29.88,141.19,141.15,5.57067975]
[1745215396960,29.88,141.19,141.16,7.0842]
[1745215397450,29.92515167,141.19,141.16,7.13518036]
[1745215398452,35.49583142,141.19,141.16,7.13518036]
[1745215398656,29.92515167,141.19,141.18,7.0837]
[1745215398861,29.92515167,141.19,141.18,12.65437975]
[1745215399456,0.04515167,141.19,141.18,12.65437975]
[1745215399664,29.86,141.22,141.21,7.082]
[1745215401854,29.86,141.22,141.2,0.0536572]
[1745215402754,29.86,141.22,141.1,8.6919957]
[1745215402755,45.6319957,141.22,141.1,8.6919957]
[1745215403061,45.6319957,141.22,141.08,40.5326957]
[1745215403062,8.6919957,141.18,141.08,40.5326957]
[1745215403261,8.6919957,141.14,141.08,1.9807]
[1745215403759,8.6919957,141.14,141.11,7.0868]
[1745215403963,0.04987717,141.12,141.11,7.0868]
[1745215404361,15.7767957,141.16,141.11,7.0868]
[1745215404661,0.04982177,141.13,141.11,7.0868]
[1745215405264,0.04982177,141.13,141.12,7.0867]
[1745215407664,29.86,141.17,141.15,7.0849]
[1745215408764,29.91403021,141.17,141.15,7.13702776]
[1745215409464,29.91403021,141.17,141.15,0.05212776]
[1745215410067,29.91403021,141.17,141.15,7.13712776]
[1745215410861,29.91403021,141.17,141.15,0.05212776]
[1745215411066,38.60602591,141.17,141.15,0.05212776]
[1745215411268,38.60602591,141.17,141.08,31.7807]
[1745215411458,7.0864,141.13,141.06,29.8]
[1745215411757,8.6919957,141.14,141.06,29.8]
[1745215411961,8.6919957,141.16,141.07,8.6919957]
[1745215412165,7.0853,141.15,141.09,8.6919957]
[1745215412368,29.86,141.17,141.09,8.6919957]
[1745215412570,0.05251162,141.13,141.11,0.04777853]
[1745215414268,0.05251162,141.13,141.12,7.0863]
[1745215414864,0.05251162,141.13,141.11,0.04777853]
[1745215415070,8.6919957,141.12,141.05,10.6255957]
[1745215415368,8.6919957,141.12,141.03,8.6919957]
[1745215415563,7.0875,141.11,141.06,7.0892]
[1745215416074,15.7799957,141.1,141.06,7.0892]
[1745215416367,15.82902336,141.1,141.07,0.04762134]
[1745215416571,7.0882,141.09,141.07,0.04762134]
[1745215418672,36.8882,141.09,141.07,0.04762134]
[1745215419772,29.8,141.09,141.07,0.04762134]
[1745215421274,36.8883,141.09,141.07,0.04762134]
[1745215421873,561.1,141.19,141.08,9.14664296]
[1745215422072,33.8091,141.18,141.1,9.14664296]
[1745215422376,7.0845,141.17,141.12,7.0863]
[1745215422676,16.23114296,141.17,141.08,9.14664296]
[1745215422976,7.0845,141.17,141.12,7.0866]
[1745215423173,0.04910802,141.14,141.11,0.04959116]
[1745215423476,29.84910802,141.14,141.11,0.04959116]
[1745215424778,29.84910802,141.14,141.11,7.13679116]
[1745215425771,36.93480802,141.14,141.11,7.13679116]
[1745215426075,29.84910802,141.14,141.11,0.04959116]
[1745215426269,11.09324296,141.13,141.11,0.04959116]
[1745215426878,3.8991,141.12,141.11,0.04959116]
[1745215427277,10.9858,141.12,141.11,0.04959116]
[1745215427473,3.8991,141.12,141.11,0.04959116]
[1745215428278,3.8991,141.12,141.03,9.14664296]
[1745215428578,9.14664296,141.1,141.01,38.94664296]
[1745215428777,29.8,141.09,141.01,38.94664296]
[1745215429476,0.04827227,141.06,141.04,0.05185715]
[1745215430777,0.04827227,141.06,141.05,7.0902]
[1745215434484,0.04827227,141.06,141.04,0.05185715]
[1745215434982,0.04827227,141.06,141.05,7.0902]
[1745215442087,29.8,141.09,141.08,7.0887]
[1745215443385,0.04517824,141.1,141.07,0.04963838]
[1745215443386,0.04517824,141.1,141.09,7.0882]
[1745215446286,29.76,141.15,141.13,7.0859]
[1745215446490,29.76,141.15,141.11,9.14664296]
[1745215446689,29.76,141.15,141.09,9.14664296]
[1745215446993,29.76,141.15,141.12,7.0863]
[1745215447194,29.76,141.15,141.09,9.14664296]
[1745215447394,0.04519945,141.13,141.12,7.0867]
[1745215451297,29.74,141.18,141.16,7.0846]
[1745215452299,29.78713834,141.18,141.16,7.13293631]
[1745215452900,29.78713834,141.18,141.17,7.0842]
[1745215454597,0.04713834,141.18,141.17,7.0842]
[1745215456800,9.1937813,141.18,141.16,0.04833631]
[1745215457000,9.1937813,141.18,141.09,9.14664296]
[1745215457200,9.14664296,141.18,141.09,9.14664296]
[1745215457401,9.14664296,141.18,141.14,7.0854]
[1745215457699,9.14664296,141.18,141.09,9.14664296]
[1745215458003,0.04648979,141.15,141.14,7.0852]
[1745215460404,29.78648979,141.15,141.13,7.086]
[1745215460899,29.78648979,141.15,141.14,7.0857]
[1745215461700,38.93313275,141.15,140.97,33.24244325]
[1745215461905,9.14664296,141.02,140.96,33.24244325]
[1745215462105,9.14664296,141.0,140.96,33.24244325]
[1745215462298,9.14664296,140.98,140.96,40.33694325]
[1745215462497,29.74,140.97,140.96,33.24244325]
[1745215462801,38.88664296,140.97,140.96,33.24244325]
[1745215463207,29.74,140.97,140.96,33.24244325]
[1745215465710,29.74,140.97,140.95,66.5367854]
[1745215465905,29.74,140.97,140.95,0.05189889]
[1745215468410,29.7,140.96,140.95,0.05189889]
[1745215480413,0.04536149,140.98,140.95,9.21399821]
[1745215480816,0.04536149,140.98,140.96,7.0947]
[1745215481018,0.04536149,140.98,140.95,9.21399821]
[1745215482218,0.04536149,140.98,140.97,7.0942]
[1745215486324,0.04536149,140.98,140.95,0.05189889]
[1745215486825,0.04536149,140.98,140.95,7.14679889]
[1745215487321,0.04536149,140.98,140.95,0.05189889]
[1745215487516,0.04536149,140.98,140.96,7.0946]
[1745215488524,0.04536149,140.98,140.95,7.14699889]
[1745215489421,0.04536149,140.98,140.95,0.05189889]
[1745215489827,0.04536149,140.98,140.96,7.0942]
[1745215490126,0.04536149,140.98,140.95,0.05189889]
[1745215490520,0.04536149,140.98,140.96,7.0947]
[1745215491127,0.04536149,140.98,140.97,7.0942]
[1745215494030,0.04536149,140.98,140.96,7.0946]
[1745215497731,0.04536149,140.98,140.97,7.0942]
[1745215500333,0.04536149,140.98,140.96,7.0945]
[1745215501536,5.90554535,140.98,140.95,0.05189889]
[1745215502032,5.90554535,140.98,140.95,7.14679889]
[1745215502638,0.04536149,140.98,140.97,7.0942]
[1745215515051,0.04536149,140.98,140.96,7.0945]
[1745215515244,5.86018386,140.97,140.96,7.0945]
[1745215517047,5.86018386,140.97,140.95,7.14689889]
[1745215518242,5.86018386,140.96,140.95,7.14689889]
[1745215518646,5.86018386,140.96,140.95,0.05189889]
[1745215520953,12.95488386,140.96,140.95,0.05189889]
[1745215522755,12.95488386,140.96,140.92,7.0965]
[1745215522756,7.0955,140.95,140.92,7.0965]
[1745215523050,5.86018386,140.93,140.87,5.86018386]
[1745215523254,5.86018386,140.91,140.87,5.86018386]
[1745215523755,0.04991889,140.9,140.89,7.0983]
[1745215524457,0.04991889,140.9,140.89,12.95848386]
[1745215524751,29.66,140.92,140.89,12.95848386]
[1745215524752,29.66,140.92,140.91,7.0972]
[1745215524953,29.66,140.92,140.91,12.95738386]
[1745215528357,29.66,140.95,140.91,5.86018386]
[1745215528557,29.66,140.96,140.93,5.86018386]
[1745215528758,5.86018386,140.98,140.97,7.0942]
[1745215528949,35.46018386,140.98,140.93,5.86018386]
[1745215529153,35.46018386,140.98,140.89,1.8822]
[1745215529349,5.9114723,140.97,140.94,0.04507692]
[1745215529859,5.9114723,140.97,140.95,7.0947]
[1745215530160,5.9114723,140.97,140.94,0.04507692]
[1745215530758,5.86018386,140.95,140.94,0.04507692]
[1745215531359,5.86018386,140.95,140.94,7.14067692]
[1745215534363,7.14588844,140.97,140.94,7.14067692]
[1745215534564,5.86018386,140.95,140.94,7.14067692]
[1745215535260,5.86018386,140.95,140.94,0.04507692]
[1745215537061,5.86018386,140.95,140.86,35.52018386]
[1745215537252,5.86018386,140.92,140.86,5.86018386]
[1745215537458,5.86018386,140.92,140.9,7.0975]
[1745215537761,5.86018386,140.92,140.86,5.86018386]
[1745215538262,0.044738,140.9,140.89,7.0983]
[1745215539061,5.90492186,140.9,140.89,7.0983]
[1745215539256,35.50492186,140.9,140.88,0.05444951]
[1745215539459,35.50492186,140.9,140.81,5.86018386]
[1745215539656,5.86018386,140.86,140.8,5.86018386]
[1745215539854,35.46018386,140.86,140.8,5.86018386]
[1745215540564,5.91146351,140.85,140.83,0.0492828]
[1745215540757,5.86018386,140.84,140.83,0.0492828]
[1745215543968,5.86018386,140.84,140.83,7.1505828]
[1745215544267,0.05127965,140.85,140.83,0.0492828]
[1745215544467,5.86018386,140.84,140.83,0.0492828]
[1745215544763,5.86018386,140.84,140.83,7.1503828]
[1745215545267,5.86018386,140.84,140.83,0.0492828]
[1745215546371,5.86018386,140.84,140.83,7.1505828]
[1745215546971,0.05127965,140.85,140.84,7.1008]
[1745215547171,5.91146351,140.85,140.84,7.1008]
[1745215547470,5.91146351,140.85,140.83,0.0492828]
[1745215547670,5.86018386,140.84,140.83,0.0492828]
[1745215548372,5.86018386,140.84,140.83,7.1501828]
[1745215550573,5.86018386,140.84,140.83,0.0492828]
[1745215551668,5.86018386,140.84,140.83,7.1505828]
[1745215554676,5.86018386,140.84,140.83,0.0492828]
[1745215556281,5.86018386,140.84,140.83,7.1505828]
[1745215561083,5.86018386,140.84,140.83,0.0492828]
[1745215562278,5.86018386,140.84,140.83,7.1505828]
[1745215568882,5.86018386,140.84,140.83,0.0492828]
[1745215569486,12.96138386,140.84,140.8,7.1025]
[1745215569687,5.86018386,140.81,140.8,7.1025]
[1745215569987,35.42018386,140.81,140.8,7.1025]
[1745215570188,35.42018386,140.81,140.72,5.86018386]
[1745215570384,5.86018386,140.77,140.72,5.86018386]
[1745215570585,0.04882037,140.76,140.73,0.04503662]
[1745215570885,0.04882037,140.76,140.75,7.105]
[1745215571385,5.86018386,140.8,140.73,0.04503662]
[1745215571585,5.86018386,140.8,140.75,5.86018386]
[1745215571989,5.86018386,140.8,140.78,7.1034]
[1745215572488,5.86018386,140.8,140.79,7.1033]
[1745215572489,5.91235692,140.8,140.79,7.1033]
[1745215572690,0.05217306,140.8,140.79,7.1033]
[1745215574994,5.91235692,140.8,140.78,0.05401563]
[1745215575192,29.56,140.79,140.78,0.05401563]
[1745215577189,29.56,140.79,140.71,5.7916]
[1745215577394,5.86018386,140.78,140.73,5.86018386]
[1745215577690,7.1044,140.77,140.73,12.96598386]
[1745215578396,5.86018386,140.74,140.71,5.7916]
[1745215578792,5.86018386,140.74,140.71,5.84535275]
[1745215578989,5.86018386,140.74,140.71,12.95225275]
[1745215579597,5.86018386,140.74,140.72,7.1068]
[1745215579995,5.86018386,140.74,140.71,3.95625275]
[1745215580299,5.86018386,140.74,140.71,7.16075275]
[1745215580997,5.86018386,140.74,140.72,7.1068]
[1745215581198,5.86018386,140.74,140.71,0.05375275]
[1745215581600,35.42018386,140.75,140.71,0.05375275]
[1745215581795,29.56,140.75,140.71,5.91393661]
[1745215582000,29.56,140.75,140.72,3.9716]
[1745215582302,29.56,140.75,140.72,9.83178386]
[1745215582498,5.86018386,140.74,140.72,1.9172]
[1745215582703,5.86018386,140.73,140.71,0.05375275]
[1745215582899,5.86018386,140.73,140.72,7.1068]
[1745215584004,5.86018386,140.73,140.71,0.05375275]
[1745215584706,12.96658386,140.73,140.71,0.05375275]
[1745215584908,5.86018386,140.73,140.71,0.05375275]
[1745215585109,5.86018386,140.73,140.71,7.16075275]
[1745215585509,5.86018386,140.73,140.71,0.05375275]
[1745215586511,7.1068,140.72,140.71,0.05375275]
[1745215586712,12.96698386,140.72,140.71,0.05375275]
[1745215586912,12.96698386,140.72,140.67,1.9172]
[1745215587208,35.44018386,140.71,140.67,1.9172]
[1745215587713,35.44018386,140.71,140.69,7.108]
[1745215588012,35.44018386,140.71,140.69,7.15568393]
[1745215588313,29.58,140.71,140.69,0.04768393]
[1745215588815,29.58,140.71,140.7,7.1078]
[1745215589516,0.05122197,140.73,140.72,7.1068]
[1745215590615,5.91140583,140.73,140.69,0.04768393]
[1745215590914,0.05122197,140.73,140.69,5.90786779]
[1745215591208,5.91140583,140.73,140.69,0.04768393]
[1745215591406,5.86018386,140.72,140.69,0.04768393]
[1745215591606,5.86018386,140.71,140.69,0.04768393]
[1745215592013,5.86018386,140.71,140.69,7.15568393]
[1745215592614,5.86018386,140.71,140.69,0.04768393]
[1745215593215,5.86018386,140.71,140.69,7.15558393]
[1745215593412,5.86018386,140.71,140.69,0.04768393]
[1745215593611,0.05122197,140.73,140.69,0.04768393]
[1745215593807,0.05122197,140.73,140.72,7.1068]
[1745215594008,11.75122197,140.73,140.72,7.1068]
[1745215595617,11.75122197,140.73,140.69,0.04768393]
[1745215595816,11.75122197,140.73,140.72,5.86018386]
[1745215596312,27.76,140.76,140.72,5.86018386]
[1745215596516,27.76,140.76,140.74,5.86018386]
[1745215596718,29.52,140.86,140.74,5.86018386]
[1745215596919,5.86018386,140.85,140.8,5.86018386]
[1745215597117,5.86018386,140.85,140.81,7.1018]
[1745215597318,0.0497375,140.84,140.81,0.05303992]
[1745215598523,0.0497375,140.84,140.82,7.1017]
[1745215599524,0.0497375,140.84,140.81,0.05303992]
[1745215599822,5.86018386,140.83,140.76,5.86018386]
[1745215600123,5.86018386,140.81,140.76,5.86018386]
[1745215600323,29.5,140.8,140.76,5.86018386]
[1745215601022,0.05371585,140.79,140.77,0.05163138]
[1745215601224,0.05371585,140.79,140.78,7.1038]
[1745215602622,29.5,140.83,140.82,7.1018]
[1745215602823,31.486,140.86,140.79,9.18131858]
[1745215603214,31.486,140.86,140.83,7.101]
[1745215603824,31.53196643,140.86,140.83,7.1467303]
[1745215604224,38.63176643,140.86,140.83,7.1467303]
[1745215604624,31.53196643,140.86,140.83,7.1467303]
[1745215605626,31.53196643,140.86,140.83,0.0457303]
[1745215607025,7.1006,140.85,140.83,0.0457303]
[1745215607429,38.63186643,140.86,140.83,0.0457303]
[1745215607830,31.53196643,140.86,140.83,0.0457303]
[1745215609127,31.53196643,140.86,140.77,29.5]
[1745215609324,31.486,140.86,140.76,9.18131858]
[1745215609528,7.1011,140.84,140.8,7.1024]
[1745215610227,0.04624957,140.83,140.81,0.04795016]
[1745215611025,36.6018,140.82,140.79,7.1032]
[1745215611228,29.5,140.82,140.76,9.18131858]
[1745215612325,29.5,140.82,140.78,0.02343411]
[1745215613127,29.5,140.82,140.78,9.20475269]
[1745215613327,29.5,140.82,140.8,9.18131858]
[1745215613528,0.04624957,140.83,140.82,7.1018]
[1745215617822,41.14499,140.88,140.86,7.0997]
[1745215618028,41.14499,140.88,140.82,9.18131858]
[1745215619030,0.05224445,140.86,140.84,9.23358545]
[1745215619236,0.05224445,140.86,140.85,7.1003]
[1745215620532,11.64499,140.88,140.87,7.0993]
[1745215620728,11.64499,140.88,140.87,16.28061858]
[1745215620932,11.64499,140.88,140.87,7.0993]
[1745215621227,29.44,140.91,140.9,7.0977]
[1745215621829,0.04613506,140.92,140.89,0.05026135]
[1745215622434,0.04613506,140.92,140.9,7.0974]
[1745215624736,0.04613506,140.92,140.91,7.0972]
[1745215625136,29.42,140.95,140.91,9.18131858]
[1745215625435,29.42,140.95,140.89,9.23157993]
[1745215626135,29.42,140.95,140.93,7.0962]
[1745215626326,29.42,140.95,140.89,9.18131858]
[1745215626531,29.46651782,140.95,140.93,0.04736284]
[1745215627737,7.0957,140.94,140.9,7.0976]
[1745215628232,7.0957,140.94,140.91,7.0971]
[1745215628834,7.14135239,140.94,140.91,7.14936191]
[1745215629535,0.04565239,140.94,140.92,7.0967]
[1745215630232,0.04565239,140.94,140.91,7.14946191]
[1745215631236,0.04565239,140.94,140.92,7.0967]
[1745215632839,0.04565239,140.94,140.93,7.0962]
[1745215635136,0.04565239,140.94,140.93,16.27751858]
[1745215636139,0.04565239,140.94,140.93,7.0962]
[1745215639440,0.04565239,140.94,140.93,16.27751858]
[1745215642637,29.42,140.98,140.95,7.0949]
[1745215643538,36.5138,140.98,140.95,7.0949]
[1745215643737,36.55871784,140.98,140.95,7.14107389]
[1745215647541,5.86226466,140.97,140.92,5.86226466]
[1745215648041,7.0948,140.96,140.93,7.0959]
[1745215648642,12.95656466,140.97,140.94,7.0956]
[1745215648837,7.0943,140.97,140.94,7.0956]
[1745215652244,42.79491784,140.98,140.95,5.86226466]
[1745215652542,42.79491784,140.98,140.93,0.05365276]
[1745215652543,42.79491784,140.98,140.97,5.86226466]
[1745215652843,29.46491784,140.98,140.97,12.95646466]
[1745215653044,0.04491784,140.98,140.97,12.95646466]
[1745215653742,33.3518,141.01,141.0,7.0927]
[1745215653743,29.36,141.01,141.0,7.0927]
[1745215653942,29.36,141.01,141.0,12.95496466]
[1745215655245,29.36,141.01,141.0,7.0927]
[1745215656244,0.04990539,141.02,141.01,7.0922]
[1745215656749,29.34,141.08,141.06,7.0896]
[1745215657044,29.34,141.08,141.03,9.15132749]
[1745215657240,29.34,141.08,141.05,7.0901]
[1745215657847,29.34,141.08,141.01,9.15132749]
[1745215658048,29.39025391,141.08,141.05,0.04793766]